bitfinex/quotes_SOLUSD_20250212
["timestamp","ask_amount","ask_price","bid_price","bid_amount"]
[1739351708880,10.04186497,195.8,195.78,0.063]
[1739351709099,10.04186497,195.82,195.78,0.063]
[1739351709309,10.04186497,195.81,195.78,0.063]
[1739351709482,1.75429,195.87,195.78,0.063]
[1739351709483,10.04186497,195.83,195.78,0.063]
[1739351709683,10.04186497,195.85,195.79,10.04186497]
[1739351710214,1.6288,195.87,195.8,10.04186497]
[1739351710215,10.04186497,195.87,195.8,10.04186497]
[1739351710499,10.04186497,195.87,195.81,10.04186497]
[1739351710711,10.04186497,195.86,195.82,5.1067]
[1739351710880,10.04186497,195.86,195.8,25.1072]
[1739351711306,0.03,195.89,195.8,25.1072]
[1739351711307,10.04186497,195.85,195.8,25.1072]
[1739351711805,10.04186497,195.84,195.8,25.1072]
[1739351712101,10.04186497,195.83,195.8,5.1072]
[1739351712302,10.04186497,195.84,195.8,5.1072]
[1739351712682,10.04186497,195.84,195.79,5.1075]
[1739351713403,10.04186497,195.86,195.79,15.14936497]
[1739351713707,10.04186497,195.87,195.81,10.04186497]
[1739351713871,10.04186497,195.88,195.81,10.04186497]
[1739351714079,10.04186497,195.88,195.82,10.04186497]
[1739351714381,92.24186497,195.88,195.82,10.04186497]
[1739351714685,92.24186497,195.88,195.83,5.1064]
[1739351714885,0.03,195.87,195.83,5.1064]
[1739351715302,0.03,195.87,195.83,15.14826497]
[1739351715598,0.03,195.87,195.84,10.04186497]
[1739351715793,0.03,195.87,195.85,10.04186497]
[1739351716791,0.03,195.87,195.86,5.1056]
[1739351717402,0.03,195.87,195.86,15.14746497]
[1739351718079,0.03,195.87,195.86,35.14746497]
[1739351718309,0.03,195.99,195.9,22.50196]
[1739351718603,0.03,195.99,195.87,8.44287]
[1739351718604,0.03,195.99,195.95,10.04186497]
[1739351719008,0.03,195.99,195.95,15.14516497]
[1739351720285,0.03,195.99,195.95,20.0]
[1739351721589,0.03,195.99,195.95,25.1033]
[1739351723316,0.03,195.99,195.95,40.75226094]
[1739351723811,0.03,195.99,195.98,15.64896094]
[1739351724910,0.063,196.01,196.0,20.0]
[1739351725099,0.063,196.01,196.0,40.75096094]
[1739351725299,0.0001,196.01,196.0,40.75096094]
[1739351727725,0.0001,196.01,195.96,20.75176094]
[1739351728130,0.0001,196.01,195.99,15.64896094]
[1739351728507,0.0001,196.01,196.0,29.56276947]
[1739351729219,0.0001,196.01,196.0,34.66476947]
[1739351730216,0.0001,196.01,196.0,34.41378947]
[1739351730610,0.0001,196.01,196.0,20.75096094]
[1739351732511,0.0001,196.01,196.0,35.64896094]
[1739351732716,0.0001,196.01,196.0,20.0]
[1739351733421,0.0001,196.01,196.0,35.64896094]
[1739351733721,0.0001,196.01,196.0,40.75096094]
[1739351740028,0.0001,196.01,196.0,25.102]
[1739351740230,0.0001,196.01,195.97,20.75176094]
[1739351740918,0.0001,196.01,196.0,20.0]
[1739351741120,0.0001,196.01,195.97,20.75176094]
[1739351741313,0.0001,196.01,195.97,5.1028]
[1739351741723,15.64906094,196.01,195.97,5.1028]
[1739351742637,15.64906094,196.01,195.96,5.103]
[1739351742833,97.84906094,196.01,195.96,5.103]
[1739351743152,82.2001,196.01,195.96,20.75196094]
[1739351744122,82.2001,196.01,195.96,5.103]
[1739351744841,97.84906094,196.01,195.96,5.103]
[1739351748524,82.2001,196.01,195.96,20.75196094]
[1739351748726,82.2,196.0,195.96,20.75196094]
[1739351749631,82.2,196.0,195.97,15.64896094]
[1739351750233,82.2,196.0,195.96,15.71196094]
[1739351750936,82.2,196.0,195.97,20.0]
[1739351751149,3.76,195.99,195.97,20.0]
[1739351751557,3.76,195.99,195.96,0.063]
[1739351751851,10.01733225,195.99,195.96,20.063]
[1739351753423,10.01733225,195.99,195.96,0.063]
[1739351753939,10.01733225,195.98,195.96,0.063]
[1739351754247,10.01733225,195.99,195.96,0.063]
[1739351756143,82.2,196.0,195.96,0.063]
[1739351756144,92.21733225,196.0,195.96,0.063]
[1739351756527,0.0001,196.01,195.99,10.01733225]
[1739351756733,0.0001,196.01,196.0,10.01733225]
[1739351757030,0.0001,196.01,195.99,30.01733225]
[1739351757425,0.0001,196.01,196.0,20.0]
[1739351757837,0.0001,196.01,195.97,5.1026]
[1739351758450,15.64365739,196.01,195.98,20.0]
[1739351758749,15.64365739,196.01,195.96,0.063]
[1739351759044,82.2,196.0,195.96,5.1659]
[1739351759546,15.64355739,195.99,195.96,0.063]
[1739351761649,17.19105739,195.99,195.96,0.063]
[1739351761948,15.64355739,195.97,195.96,0.063]
[1739351764964,20.74635739,195.97,195.96,0.063]
[1739351765245,20.87184739,195.97,195.96,0.063]
[1739351766455,20.87184739,195.97,195.86,0.063]
[1739351766456,1.526,195.93,195.86,0.063]
[1739351766649,15.64355739,195.87,195.86,0.063]
[1739351768631,15.64355739,195.9,195.86,0.063]
[1739351768832,15.64355739,195.91,195.86,0.063]
[1739351769052,15.64355739,195.92,195.86,0.063]
[1739351769751,6.5153,195.97,195.88,15.64355739]
[1739351769955,15.64355739,195.97,195.91,15.64355739]
[1739351770138,1.526,195.99,195.87,13.66282853]
[1739351770139,15.64355739,195.98,195.92,15.64355739]
[1739351770454,82.2,195.96,195.92,15.64355739]
[1739351771340,82.2,195.96,195.93,5.1038]
[1739351771944,97.84355739,195.96,195.89,15.64355739]
[1739351772144,15.64355739,195.94,195.89,20.0]
[1739351772456,82.2,195.93,195.89,20.0]
[1739351772658,3.76,195.92,195.89,20.0]
[1739351773246,3.76,195.92,195.9,5.1046]
[1739351773448,82.2,195.93,195.9,5.1046]
[1739351773642,82.2,195.93,195.89,25.1048]
[1739351774559,82.2,195.93,195.9,15.64355739]
[1739351775066,82.2,195.93,195.92,20.0]
[1739351775256,85.94,195.93,195.92,20.0]
[1739351776772,85.94,195.93,195.89,5.1047]
[1739351776949,82.2,195.93,195.89,20.74825739]
[1739351779881,82.2,195.93,195.91,15.64355739]
[1739351781100,82.2,195.93,195.92,35.64355739]
[1739351781268,82.2,196.0,195.92,49.30638592]
[1739351781467,82.2,196.0,195.95,15.64355739]
[1739351781668,82.2,196.0,195.92,33.66282853]
[1739351781669,82.2,196.0,195.94,15.64355739]
[1739351782676,97.84355739,196.0,195.95,5.1033]
[1739351783177,15.64355739,195.97,195.92,25.1039]
[1739351783381,97.84355739,195.97,195.92,25.1039]
[1739351784881,0.03,195.96,195.92,40.74745739]
[1739351785089,0.03,195.96,195.93,15.64355739]
[1739351785280,15.67355739,195.96,195.92,25.1039]
[1739351785480,0.03,195.96,195.92,25.1039]
[1739351787301,15.64355739,195.93,195.89,0.063]
[1739351787596,15.64355739,195.91,195.89,0.063]
[1739351787793,97.84355739,195.9,195.89,0.063]
[1739351788001,15.64355739,195.9,195.89,0.063]
[1739351788706,31.28711478,195.9,195.89,0.063]
[1739351788889,32.87011478,195.9,195.89,0.063]
[1739351789281,37.97471478,195.9,195.89,0.063]
[1739351790514,37.97471478,195.9,195.86,0.063]
[1739351790515,0.12549,195.89,195.86,0.063]
[1739351790681,35.64355739,195.87,195.86,0.063]
[1739351792285,15.64355739,195.87,195.86,0.063]
[1739351793108,15.64355739,195.88,195.86,0.063]
[1739351793283,15.64355739,195.89,195.86,0.063]
[1739351793681,82.2,195.88,195.86,0.063]
[1739351794483,82.2,195.88,195.86,15.70655739]
[1739351796079,15.64355739,195.92,195.87,5.1054]
[1739351796286,15.64355739,195.93,195.87,20.74895739]
[1739351796478,82.2,195.92,195.87,5.1054]
[1739351796686,97.84355739,195.92,195.86,5.1686]
[1739351797203,15.64355739,195.9,195.86,0.063]
[1739351797505,15.64355739,195.88,195.86,0.063]
[1739351798807,97.84355739,195.87,195.86,0.063]
[1739351799891,82.2,195.87,195.86,0.063]
[1739351800289,97.84355739,195.87,195.86,0.063]
[1739351802304,15.64355739,195.87,195.86,0.063]
[1739351805091,15.64355739,195.88,195.86,0.063]
[1739351807985,15.64355739,195.87,195.86,0.063]
[1739351813315,15.64355739,195.88,195.86,0.063]
[1739351813525,0.03,195.89,195.86,0.063]
[1739351813839,82.23,195.89,195.87,15.64355739]
[1739351814015,82.23,195.89,195.88,15.64355739]
[1739351814314,0.03,195.89,195.88,15.64355739]
[1739351814814,0.03,195.89,195.88,29.05540592]
[1739351815596,0.03,195.89,195.88,34.16050592]
[1739351817005,0.03,195.89,195.86,20.81195739]
[1739351818120,0.03,195.89,195.87,15.64355739]
[1739351819430,0.03,195.89,195.87,20.74865739]
[1739351819849,0.03,195.89,195.87,5.1051]
[1739351820027,0.03,195.89,195.86,0.063]
[1739351820230,15.64355739,195.87,195.86,0.063]
[1739351820732,0.03,195.89,195.86,5.1686]
[1739351821306,0.03,195.89,195.88,5.1051]
[1739351822713,0.03,195.89,195.88,20.74865739]
[1739351824315,0.03,195.89,195.88,5.1051]
[1739351829240,0.03,195.89,195.86,20.81195739]
[1739351829435,0.03,195.89,195.86,5.1684]
[1739351831335,0.03,195.89,195.86,0.063]
[1739351831526,97.84355739,195.88,195.86,0.063]
[1739351831722,97.84355739,195.87,195.86,0.063]
[1739351833045,20.74895739,195.87,195.86,0.063]
[1739351834631,23.39875739,195.87,195.86,0.063]
[1739351834824,23.77522739,195.87,195.86,0.063]
[1739351837345,20.0,195.83,195.8,0.063]
[1739351837645,15.64355739,195.81,195.8,0.063]
[1739351839045,20.75045739,195.81,195.8,0.063]
[1739351839634,15.64355739,195.81,195.8,0.063]
[1739351841344,20.75045739,195.81,195.8,0.063]
[1739351842363,15.64355739,195.81,195.8,0.063]
[1739351844656,6.48449,195.86,195.8,0.063]
[1739351844657,15.64355739,195.82,195.8,0.063]
[1739351845051,15.64355739,195.83,195.8,0.063]
[1739351846120,15.64355739,195.82,195.8,0.063]
[1739351846325,15.64355739,195.81,195.8,0.063]
[1739351851264,20.75045739,195.81,195.8,0.063]
[1739351857159,20.75045739,195.81,195.77,0.03]
[1739351857160,20.12549,195.78,195.77,0.03]
[1739351857370,15.64355739,195.77,195.76,0.063]
[1739351858238,20.75155739,195.77,195.76,0.063]
[1739351859361,21.75155739,195.77,195.76,0.063]
[1739351860043,20.75155739,195.77,195.76,0.063]
[1739351862938,15.64355739,195.77,195.76,0.063]
[1739351864144,20.75155739,195.77,195.76,0.063]
[1739351866271,15.64355739,195.77,195.76,0.063]
[1739351866452,15.64355739,195.78,195.76,0.063]
[1739351866651,15.64355739,195.77,195.76,0.063]
[1739351866946,15.64355739,195.79,195.76,0.063]
[1739351867669,15.64355739,195.78,195.76,0.063]
[1739351868171,15.64355739,195.81,195.76,0.063]
[1739351868368,15.64355739,195.82,195.76,15.70655739]
[1739351869255,5.1066,195.83,195.76,0.063]
[1739351869256,15.64355739,195.81,195.76,0.063]
[1739351870180,15.64355739,195.83,195.77,15.64355739]
[1739351870676,15.64355739,195.84,195.77,15.64355739]
[1739351871260,15.64355739,195.84,195.78,5.1077]
[1739351871774,15.64355739,195.84,195.77,15.64355739]
[1739351872069,15.64355739,195.83,195.77,15.64355739]
[1739351872277,15.64355739,195.83,195.77,18.51974853]
[1739351873086,15.64355739,195.81,195.76,0.063]
[1739351873378,15.64355739,195.79,195.76,0.063]
[1739351874354,82.2,195.85,195.78,17.23495739]
[1739351874559,82.2,195.85,195.82,15.64355739]
[1739351874761,82.2,195.85,195.81,15.64355739]
[1739351875180,97.84355739,195.85,195.78,17.23495739]
[1739351875379,15.64355739,195.84,195.78,17.23495739]
[1739351875879,15.64355739,195.84,195.78,22.34265739]
[1739351878363,97.84355739,195.85,195.78,22.34265739]
[1739351878762,97.84355739,195.85,195.79,15.64355739]
[1739351879083,82.2,195.85,195.8,15.64355739]
[1739351879287,82.2,195.85,195.79,15.64355739]
[1739351879462,82.263,195.84,195.78,22.34265739]
[1739351879664,82.263,195.84,195.79,15.64355739]
[1739351879885,82.263,195.84,195.8,15.64355739]
[1739351880188,82.263,195.84,195.81,5.1069]
[1739351880392,82.263,195.84,195.82,15.64355739]
[1739351880568,0.03,195.87,195.84,13.41184853]
[1739351880765,0.03,195.87,195.86,15.64355739]
[1739351881991,0.03,195.87,195.86,20.74915739]
[1739351882592,0.03,195.87,195.83,7.6649]
[1739351882771,0.03,195.87,195.83,23.30845739]
[1739351882972,0.03,195.87,195.84,15.64355739]
[1739351884283,0.03,195.87,195.86,15.64355739]
[1739351885572,0.03,195.87,195.85,29.05540592]
[1739351885803,0.03,195.87,195.85,15.64355739]
[1739351886192,0.03,195.87,195.84,34.16150592]
[1739351886566,0.03,195.87,195.85,15.64355739]
[1739351887695,0.03,195.87,195.85,20.74925739]
[1739351887873,0.03,195.87,195.86,29.05540592]
[1739351888197,0.03,195.87,195.86,29.30638592]
[1739351888488,0.03,195.89,195.88,20.25098]
[1739351888790,82.2,195.95,195.92,15.64355739]
[1739351888993,82.2,195.95,195.91,29.05540592]
[1739351889291,82.2,195.95,195.89,15.64355739]
[1739351889995,82.2,195.95,195.89,20.74835739]
[1739351890498,82.2,195.95,195.89,15.64355739]
[1739351890667,15.64355739,195.94,195.87,20.74885739]
[1739351890867,97.84355739,195.94,195.87,20.74885739]
[1739351891192,97.84355739,195.94,195.88,15.64355739]
[1739351891568,15.64355739,195.92,195.86,29.05540592]
[1739351891768,97.84355739,195.91,195.85,20.74925739]
[1739351891997,97.84355739,195.9,195.85,5.1057]
[1739351892297,97.84355739,195.9,195.84,15.67355739]
[1739351892474,97.84355739,195.9,195.84,13.44184853]
[1739351892670,97.84355739,195.9,195.84,15.67355739]
[1739351892868,97.84355739,195.9,195.84,20.77965739]
[1739351894072,82.2,195.9,195.85,15.64355739]
[1739351894279,97.84355739,195.9,195.84,15.67355739]
[1739351894566,97.84355739,195.9,195.84,20.77975739]
[1739351895189,82.2,195.9,195.85,15.64355739]
[1739351895388,82.2,195.9,195.87,15.64355739]
[1739351895599,82.2,195.9,195.88,15.64355739]
[1739351895771,82.2,195.9,195.85,13.41184853]
[1739351895772,82.2,195.9,195.89,15.64355739]
[1739351896305,82.2,195.94,195.89,34.16030592]
[1739351896523,82.2,195.93,195.91,15.64355739]
[1739351896994,82.2,195.93,195.9,15.64355739]
[1739351897183,82.2,195.93,195.89,34.16030592]
[1739351897606,3.86,195.92,195.89,34.16030592]
[1739351898185,3.86,195.92,195.89,18.51674853]
[1739351898401,82.2,195.93,195.89,18.51674853]
[1739351899302,82.2,195.93,195.89,34.16030592]
[1739351899595,0.063,195.95,195.91,13.41184853]
[1739351899805,0.063,195.95,195.92,15.64355739]
[1739351901191,0.063,195.95,195.93,20.74735739]
[1739351901375,0.063,195.95,195.93,5.1038]
[1739351901578,0.063,195.95,195.91,29.05540592]
[1739351901797,0.063,195.95,195.91,15.64355739]
[1739351902093,0.063,195.95,195.9,15.64355739]
[1739351902896,0.063,195.95,195.9,20.74815739]
[1739351903487,15.64355739,195.94,195.89,13.44184853]
[1739351904287,0.063,195.95,195.93,15.64355739]
[1739351904494,0.063,195.95,195.94,29.30638592]
[1739351905028,0.063,195.95,195.94,34.40998592]
[1739351906235,0.063,195.95,195.94,18.51544853]
[1739351908734,0.063,195.95,195.94,5.1036]
[1739351909318,0.063,195.95,195.93,5.1038]
[1739351909638,0.063,195.95,195.9,5.1046]
[1739351910252,82.2,195.94,195.9,5.1046]
[1739351911223,82.2,195.94,195.9,20.74815739]
[1739351911430,82.2,195.94,195.9,5.1046]
[1739351912148,97.84355739,195.94,195.89,5.1348]
[1739351912316,15.64355739,195.93,195.89,5.1348]
[1739351912518,82.2,195.94,195.89,5.1348]
[1739351913241,82.2,195.94,195.89,20.77835739]
[1739351914453,15.64355739,195.93,195.89,0.03]
[1739351914750,15.64355739,195.92,195.89,0.03]
[1739351915120,15.64355739,195.91,195.89,0.03]
[1739351915548,15.64355739,195.92,195.89,0.03]
[1739351916749,15.64355739,195.91,195.89,0.03]
[1739351916956,15.64355739,195.9,195.89,0.03]
[1739351918254,15.64355739,195.91,195.89,0.03]
[1739351918432,15.64355739,195.93,195.89,0.03]
[1739351920175,15.64355739,195.92,195.89,0.03]
[1739351922483,15.64355739,195.9,195.89,0.03]
[1739351923559,20.74815739,195.9,195.89,0.03]
[1739351925244,15.64355739,195.9,195.89,0.03]
[1739351926154,20.74815739,195.9,195.89,0.03]
[1739351928357,20.87364739,195.9,195.89,0.03]
[1739351932994,15.64355739,195.9,195.89,0.03]
[1739351934281,20.74815739,195.9,195.89,0.03]
[1739351934678,20.87364739,195.9,195.89,0.03]
[1739351935583,15.26102322,195.9,195.89,0.03]
[1739351937397,10.03093322,195.9,195.89,0.03]
[1739351937597,15.66898943,195.9,195.89,0.03]
[1739351939199,15.66898943,195.93,195.89,0.03]
[1739351940001,0.063,195.94,195.89,0.03]
[1739351940170,0.063,195.9,195.89,0.03]
[1739351943411,15.73198943,195.9,195.89,0.03]
[1739351944808,20.83658943,195.9,195.89,0.03]
[1739351945014,20.96207943,195.9,195.89,0.03]
[1739351946793,0.063,195.9,195.89,0.03]
[1739351948894,15.73198943,195.9,195.89,0.03]
[1739351949206,0.063,195.9,195.89,0.03]
[1739351949714,0.063,195.9,195.89,15.69898943]
[1739351949914,0.063,195.9,195.89,0.03]
[1739351951617,15.73198943,195.9,195.89,0.03]
[1739351952696,0.063,195.9,195.89,0.03]
[1739351954608,15.73198943,195.9,195.89,0.03]
[1739351956102,20.83658943,195.9,195.89,0.03]
[1739351957811,15.73198943,195.9,195.89,0.03]
[1739351959229,20.83658943,195.9,195.89,0.03]
[1739351961602,15.19718207,195.9,195.89,0.03]
[1739351963729,10.09258207,195.9,195.89,0.03]
[1739351963936,0.063,195.9,195.89,0.03]
[1739351964422,0.063,195.9,195.89,10.05958207]
[1739351964623,0.063,195.9,195.89,11.58668207]
[1739351965430,0.063,195.9,195.89,1.5571]
[1739351965739,0.063,195.9,195.89,0.03]
[1739351966626,10.09258207,195.9,195.89,0.03]
[1739351969054,0.063,195.9,195.89,0.03]
[1739351969464,0.063,195.9,195.89,10.05958207]
[1739351969927,0.063,195.9,195.89,0.03]
[1739351973048,10.09258207,195.9,195.89,0.03]
[1739351975656,15.73183001,195.9,195.89,0.03]
[1739351979155,20.83643001,195.9,195.89,0.03]
[1739351980671,15.73183001,195.9,195.89,0.03]
[1739351980873,0.063,195.9,195.89,0.03]
[1739351983284,0.063,195.9,195.89,20.53196]
[1739351983503,0.063,195.9,195.89,28.06877]
[1739351983791,0.063,195.9,195.89,41.60610853]
[1739351984267,0.063,195.9,195.89,56.77297854]
[1739351984953,0.063,195.9,195.89,61.87787854]
[1739351989498,0.063,195.9,195.89,5.1349]
[1739351989783,0.063,195.9,195.89,0.03]
[1739351990368,15.73183001,195.9,195.89,0.03]
[1739351995299,20.83643001,195.9,195.89,0.03]
[1739351997696,15.19740961,195.9,195.89,0.03]
[1739351998099,10.09280961,195.9,195.89,0.03]
[1739352002207,15.19740961,195.9,195.89,0.03]
[1739352003981,15.32289961,195.9,195.89,0.03]
[1739352004303,56.44213805,195.9,195.89,0.03]
[1739352006006,15.32289961,195.9,195.89,0.03]
[1739352008400,56.44213805,195.9,195.89,0.03]
[1739352008775,15.32289961,195.9,195.89,0.03]
[1739352013708,0.063,195.9,195.89,0.03]
[1739352013891,0.063,195.9,195.89,10.05980961]
[1739352015506,0.063,195.9,195.89,23.47165814]
[1739352015706,0.063,195.9,195.89,28.57655814]
[1739352022607,0.063,195.9,195.89,10.05980961]
[1739352022784,0.063,195.9,195.89,15.16470961]
[1739352022979,0.063,195.9,195.89,28.57655814]
[1739352026911,0.063,195.9,195.89,0.03]
[1739352027114,10.09280961,195.9,195.89,0.03]
[1739352028909,15.32289961,195.9,195.89,0.03]
[1739352029218,56.69311805,195.9,195.89,0.03]
[1739352029517,10.02980961,195.85,195.84,0.03]
[1739352030617,15.13570961,195.85,195.84,0.03]
[1739352031704,20.78664781,195.85,195.84,0.03]
[1739352031895,20.91213781,195.85,195.84,0.03]
[1739352039325,21.91213781,195.85,195.84,0.03]
[1739352040031,22.16311781,195.85,195.84,0.03]
[1739352040511,20.91213781,195.85,195.84,0.03]
[1739352044318,21.0,195.82,195.76,0.063]
[1739352044525,15.68074781,195.77,195.76,0.063]
[1739352047222,20.78874781,195.77,195.76,0.063]
[1739352050851,21.16521781,195.77,195.76,0.063]
[1739352051014,20.0,195.74,195.7,0.063]
[1739352051214,15.68074781,195.71,195.7,0.063]
[1739352052931,20.79034781,195.71,195.7,0.063]
[1739352053641,15.15785314,195.71,195.7,0.063]
[1739352054450,15.28334314,195.71,195.7,0.063]
[1739352055725,10.04825314,195.71,195.7,0.063]
[1739352057520,15.15785314,195.71,195.7,0.063]
[1739352058735,15.53432314,195.71,195.7,0.063]
[1739352058936,56.7273357,195.71,195.7,0.063]
[1739352059132,10.04825314,195.71,195.7,0.063]
[1739352059641,15.15785314,195.71,195.7,0.063]
[1739352060220,10.04825314,195.71,195.7,0.063]
[1739352060421,15.15785314,195.71,195.7,0.063]
[1739352060744,10.04825314,195.71,195.7,0.063]
[1739352062038,10.04825314,195.72,195.7,0.063]
[1739352062238,10.04825314,195.74,195.7,0.063]
[1739352062450,10.04825314,195.71,195.7,0.063]
[1739352063230,50.2412657,195.71,195.7,0.063]
[1739352063425,50.6177357,195.71,195.7,0.063]
[1739352063649,51.6177357,195.71,195.7,0.063]
[1739352063858,50.6177357,195.71,195.7,0.063]
[1739352065037,10.42472314,195.71,195.7,0.063]
[1739352065233,10.04825314,195.71,195.7,0.063]
[1739352065637,15.69956383,195.71,195.7,0.063]
[1739352065835,15.69956383,195.72,195.7,0.063]
[1739352066033,15.69956383,195.73,195.7,0.063]
[1739352066544,15.69956383,195.72,195.7,0.063]
[1739352067357,15.69956383,195.73,195.7,0.063]
[1739352068137,15.69956383,195.74,195.7,0.063]
[1739352069057,15.69956383,195.73,195.7,0.063]
[1739352069433,15.69956383,195.74,195.7,0.063]
[1739352069637,15.69956383,195.71,195.7,0.063]
[1739352071564,20.80916383,195.71,195.7,0.063]
[1739352073945,15.69956383,195.71,195.7,0.063]
[1739352074340,20.80916383,195.71,195.7,0.063]
[1739352076065,15.69956383,195.71,195.7,0.063]
[1739352077460,15.69956383,195.72,195.7,0.063]
[1739352077662,15.69956383,195.74,195.7,0.063]
[1739352079563,0.063,195.76,195.7,30.81661236]
[1739352079768,15.76256383,195.76,195.7,15.11704853]
[1739352080475,15.69956383,195.72,195.7,1.7052]
[1739352080773,97.89956383,195.73,195.7,1.7052]
[1739352081081,82.2,195.73,195.7,1.7052]
[1739352081445,97.89956383,195.73,195.7,1.7052]
[1739352082248,103.00856383,195.73,195.7,0.063]
[1739352082448,15.69956383,195.71,195.7,0.063]
[1739352083655,20.80916383,195.71,195.7,0.063]
[1739352087085,15.69956383,195.71,195.7,0.063]
[1739352087674,15.69956383,195.72,195.7,0.063]
[1739352087881,15.69956383,195.73,195.7,0.063]
[1739352088086,0.063,195.76,195.73,13.41184853]
[1739352088260,0.063,195.76,195.75,15.69956383]
[1739352089153,0.063,195.76,195.75,20.80806383]
[1739352092090,0.063,195.84,195.76,13.53733853]
[1739352092266,0.063,195.84,195.81,23.71436383]
[1739352092594,0.063,195.84,195.82,15.69956383]
[1739352093372,0.063,195.84,195.81,8.0148]
[1739352094296,0.063,195.84,195.82,15.69956383]
[1739352094655,0.063,195.84,195.83,15.69956383]
[1739352095792,0.063,195.84,195.83,29.11141236]
[1739352096389,0.063,195.84,195.83,34.21781236]
[1739352097484,0.063,195.84,195.81,28.82106383]
[1739352097880,0.063,195.84,195.81,8.0148]
[1739352099389,15.76256383,195.84,195.77,15.69956383]
[1739352099567,82.2,195.83,195.78,13.41184853]
[1739352101797,15.76256383,195.84,195.75,1.5376]
[1739352101798,15.69956383,195.79,195.75,1.5376]
[1739352102111,15.69956383,195.77,195.76,0.03]
[1739352103875,20.80756383,195.77,195.76,0.03]
[1739352104104,27.64123383,195.77,195.76,0.03]
[1739352104277,27.64123383,195.77,195.7,0.063]
[1739352104278,20.0,195.74,195.7,0.063]
[1739352104480,15.69956383,195.71,195.7,0.063]
[1739352111601,20.80916383,195.71,195.7,0.063]
[1739352113506,36.88519766,195.71,195.7,0.063]
[1739352113809,37.88519766,195.71,195.7,0.063]
[1739352113994,0.25098,195.7,195.69,0.063]
[1739352114304,31.39912766,195.7,195.69,0.063]
[1739352114496,15.69956383,195.7,195.69,0.063]
[1739352114671,15.82505383,195.7,195.69,0.063]
[1739352115085,15.69956383,195.7,195.69,0.063]
[1739352115617,20.80936383,195.7,195.69,0.063]
[1739352123398,15.69956383,195.7,195.69,0.063]
[1739352124292,20.80936383,195.7,195.69,0.063]
[1739352125716,36.63441766,195.7,195.69,0.063]
[1739352126018,20.93485383,195.7,195.69,0.063]
[1739352126415,15.76256383,195.7,195.69,0.063]
[1739352127388,0.063,195.7,195.69,0.063]
[1739352130032,0.063,195.7,195.69,5.1731]
[1739352130538,0.063,195.7,195.69,0.063]
[1739352132106,0.063,195.76,195.73,20.0]
[1739352132507,0.063,195.76,195.75,33.41184853]
[1739352133117,0.063,195.76,195.73,15.69956383]
[1739352133321,0.063,195.76,195.71,15.69956383]
[1739352133541,0.063,195.76,195.74,20.0]
[1739352135316,0.063,195.76,195.74,25.1087]
[1739352135512,0.063,195.76,195.75,29.11141236]
[1739352136742,0.063,195.76,195.75,34.21991236]
[1739352139725,82.2,195.8,195.78,20.0]
[1739352140035,82.2,195.83,195.8,13.41184853]
[1739352141517,82.2,195.83,195.77,17.21476383]
[1739352142050,82.2,195.83,195.78,13.41184853]
[1739352142346,15.69956383,195.82,195.75,15.69956383]
[1739352142532,82.2,195.81,195.76,13.41184853]
[1739352143551,82.2,195.81,195.74,15.69956383]
[1739352143552,82.2,195.8,195.74,15.69956383]
[1739352143743,15.69956383,195.75,195.68,0.03]
[1739352144054,15.69956383,195.73,195.68,0.03]
[1739352144348,97.89956383,195.72,195.68,0.03]
[1739352144546,15.69956383,195.72,195.68,0.03]